Workbook

Sheet Sheet1
A3: INSTRUCTIONS: Use this form when a single information collection document involves multiple reporting and recordkeeping requirements. The totals of the figures in cols. (D), (F), (H), (I), & (K) should be entered in items 17 & 18 of OMB 83-1. For cols. (E), (F), & (J), the averages of the totals shall be computed, as follows, and then entered on the OMB 83-1. (F) Total/Total = (E) Average (H) Total/(F) Total = (G) Average (K) Total/(I) Total = (J) Average NOTE: The columns will calculate automatically. If Col. E's response is something other than annually, i.e., 1/6 years, list as "1/6" & decimal will display. | I3: TITLE OF INFORMATION COLLECTION DOCUMENT | N3: OMB NO.
I5: U.S. Domestic Hemp Production Program | N5: 0581-NEW
N8: DATE PREPARED
N10: 2019-10-22
A12: IDENTIFICATION OF REPORTING OR RECORDKEEPING REQUIREMENT | H12: ANNUAL BURDEN
H14: REPORTS | M14: RECORDS
O16: TOTAL
G17: FORMS NO (S) | H17: NO. OF | I17: NO OF | J17: TOTAL ANNUAL | K17: HOURS | L17: TOTAL | M17: NO. OF | N17: ANNUAL | O17: RECORD-
A18: SECTION OF | B18: DESCRIPTION | G18: (If "none" | H18: RESPONDENTS | I18: RESPONSES | J18: RESPONSES | K18: PER | L18: HOURS | M18: RECORD- | N18: HOURS PER | O18: KEEPING HOURS
A19: REGS. | G19: so state) | I19: PER | J19: (Col. D x E) | K19: RESPONSE | L19: (Col. F x G) | M19: KEEPERS | N19: RECORD- | O19: (Col. I x J)
I20: RESPONDENT | N20: KEEPER
A21: (A) | B21: (B) | G21: (C) | H21: (D) | I21: (E) | J21: (F) | K21: (G) | L21: (H) | M21: (I) | N21: (J) | O21: (K)
A22: 990 | B22: State and Tribal Hemp Producer Report | G22: AMS-23 | H22: 100 | I22: 12.0000 | J22: =SUM(H22*I22) -> 1,200.00 | K22: 0.3333 | L22: =SUM(J22*K22) -> 399.96 | M22: 100 | N22: 0.083 | O22: =SUM(M22*N22) -> 8.30
A23: 990 | B23: State and Tribal Producer Responses (an estimate of the average number of producers for the 3 year period) | G23: information only | H23: 8,000 | I23: 0.3330 | J23: 2,664.00 | K23: 0.1670 | L23: =SUM(J23*K23) -> 444.89 | M23: 2,664 | N23: 0.083 | O23: =SUM(M23*N23) -> 221.11
A24: 990 | B24: State and Tribal Hemp Disposal Report | G24: AMS-24 | H24: 100 | I24: 12.0000 | J24: 1,200.00 | K24: 0.3333 | L24: =SUM(J24*K24) -> 399.96 | M24: 100 | N24: 0.083 | O24: =SUM(M24*N24) -> 8.30
A25: 900 | B25: State and Tribal Producer Disposal Responses (20% of 6,700 then x 2 for 2 lots/producer) | G25: information only | H25: 2,680 | I25: 1.0000 | J25: 2,680.00 | K25: 0.1670 | L25: =SUM(J25*K25) -> 447.56 | M25: 2,680 | N25: 0.083 | O25: =SUM(M25*N25) -> 222.44
A26: 990 | B26: State and Tribal Hemp Annual Report | G26: AMS-25 | H26: 100 | I26: 1.0000 | J26: 100.00 | K26: 0.3333 | L26: =SUM(J26*K26) -> 33.33 | M26: 100 | N26: 0.083 | O26: =SUM(M26*N26) -> 8.30
A27: 990 | B27: State and Tribal Hemp Annual Report Response (Information Only) | G27: information only | H27: 6,700 | I27: 1.0000 | J27: 6,700.00 | K27: 0.1670 | L27: 1,118.90 | M27: 6,700 | N27: 0.083 | O27: =SUM(M27*N27) -> 556.10
A28: 990 | B28: USDA Hemp Plan Producer Licensing Application (1,000 but good for 3 years) | G28: AMS-26 | H28: 1,000 | I28: 0.3330 | J28: =SUM(H28*I28) -> 333.00 | K28: 0.1670 | L28: =SUM(J28*K28) -> 55.61 | M28: 333 | N28: 0.083 | O28: =SUM(M28*N28) -> 27.64
A29: 990 | B29: USDA Hemp Plan Producer Disposal Form (20% of 1,000 x 2 lots) | G29: AMS-27 | H29: 400 | I29: 1.0000 | J29: =SUM(H29*I29) -> 400.00 | K29: 0.3333 | L29: =SUM(J29*K29) -> 133.32 | M29: 400 | N29: 0.083 | O29: =SUM(M29*N29) -> 33.20
A30: 990 | B30: USDA Hemp Plan Producer Annual Report | G30: AMS-28 | H30: 1,000 | I30: 1.0000 | J30: 1,000.00 | K30: 0.3333 | L30: 333.30 | M30: 1,000 | N30: 0.083 | O30: 83.00
A31: 990 | B31: Report of Acreage (administered by FSA but burden hours are included with AMS) | G31: FSA-578 | H31: 7,700 | I31: 1.0000 | J31: 7,700.00 | K31: 0.5000 | L31: =SUM(J31*K31) -> 3,850.00 | M31: 7,700 | N31: 0.083 | O31: 639.10
A32: 990 | B32: Laboratory Test Results Report | G32: AMS-22 | H32: 7,700 | I32: 2.0000 | J32: 15,400.00 | K32: 0.5000 | L32: 7,700.00 | M32: 7,700 | N32: 0.083 | O32: =SUM(M32*N32) -> 639.10
B33: SUBTOTAL | H33: 6,100 | I33: =SUM(I22:I32) -> 33 | J33: =SUM(J22:J32) -> 39,377.00 | L33: =SUM(L22:L32) -> 14,917 | M33: =SUM(M22:M32) -> 29,477.00 | O33: =SUM(O22:O32) -> 2,446.59
B34: TOTAL OF ALL PAGES | J34: =SUM(J33+M33) -> 68,854.00 | L34: =SUM(L22:L32) -> 14,916.83
A35: TOTAL - COLUMNS "F" AND "I" = OMB 831, 13 b; COLUMNS "H" AND "K" = OMB 831, 13c | J35: =SUM(J33+M33) -> 68,854.00 | L35: =SUM(L33+O33) -> 17,363
